fUSD/lending_fUSD_20250127
["ID","MTS","AMOUNT","RATE_DAILY","PERIOD"]
[350598555,1737987045279,-500.0,0.00011129,2]
[350598556,1737987045289,-500.0,0.00011129,2]
[350598557,1737987045298,-483.58342973,0.00011129,2]
[350598558,1737987045307,-500.0,0.00011161,2]
[350598559,1737987045315,-182.87566635,0.00011183,2]
[350598560,1737987045324,-500.0,0.00011402,2]
[350598561,1737987045334,-11309.93672531,0.00011833,2]
[350598562,1737987045343,-200.0,0.00011833,2]
[350598563,1737987045352,-6985.87188734,0.00011833,2]
[350598564,1737987045368,-2077.17280802,0.00011834,2]
[350598565,1737987045385,-844.99109176,0.00011834,2]
[350598566,1737987045394,-231.4100774,0.00011835,2]
[350598567,1737987045403,-20409.25628507,0.00011835,2]
[350598568,1737987045415,-9315.63957483,0.00011835,2]
[350598569,1737987045426,-12492.42333692,0.00011835,2]
[350598570,1737987045448,-2010.0,0.00011835,2]
[350598571,1737987045459,-2834.66976869,0.00011835,2]
[350598572,1737987045471,-1850.9311271,0.00011835,2]
[350598573,1737987045482,-1155.0,0.00011835,2]
[350598576,1737987045933,-310.30999999,0.00011835,2]
[350598577,1737987045944,-855.12389015,0.00011835,2]
[350598578,1737987045955,-501.41061,0.00011835,2]
[350598579,1737987045967,-626.05435915,0.00011835,2]
[350598581,1737987045979,-5448.280296,0.00011835,2]
[350598584,1737987046005,-1029.94312625,0.00011835,2]
[350598585,1737987046023,-7146.56277868,0.00011835,2]
[350598589,1737987046894,-0.81330193,0.00011326,2]
[350598591,1737987047032,-584.60920294,0.00010997,2]
[350598592,1737987047063,-1319.63824706,0.00010997,2]
[350598593,1737987047072,-182.06236442,0.00011326,2]
[350598594,1737987047082,-68297.66504697,0.00011835,2]
[350598595,1737987047091,-1440.21631293,0.00011835,2]
[350598596,1737987047100,-816.38278356,0.00011836,2]
[350598597,1737987047110,-816.38278356,0.00011836,2]
[350598598,1737987047124,-7621.35093588,0.00011836,2]
[350598599,1737987047134,-1776.55815904,0.00011837,2]
[350598600,1737987047143,-2323.46813687,0.00011837,2]
[350598601,1737987047153,-4067.9485514,0.00011838,2]
[350598602,1737987047162,-200.0,0.00011838,2]
[350598603,1737987047171,-231.4100774,0.00011839,2]
[350598604,1737987047180,-200.0,0.00011839,2]
[350598605,1737987047189,-1776.55815904,0.0001184,2]
[350598606,1737987047198,-200.0,0.00011841,2]
[350598607,1737987047207,-312.82567887,0.00011842,2]
[350598608,1737987047216,-200.0,0.00011842,2]
[350598609,1737987047225,-200.0,0.00011842,2]
[350598610,1737987047234,-6985.87188734,0.00011843,2]
[350598611,1737987047243,-844.99109176,0.00011844,2]
[350598612,1737987047253,-6985.87188734,0.00011844,2]
[350598613,1737987047262,-3833.436426,0.00011845,2]
[350598614,1737987047272,-3833.436426,0.00011845,2]
[350598615,1737987047281,-200.0,0.00011847,2]
[350598616,1737987047290,-216.3788078,0.00011848,2]
[350598617,1737987047299,-200.0,0.00011848,2]
[350598618,1737987047308,-357.43792939,0.00011849,2]
[350598619,1737987047317,-312.82567887,0.00011849,2]
[350598620,1737987047326,-469.309692,0.0001185,2]
[350598621,1737987047336,-445.58359524,0.0001185,2]
[350598622,1737987047345,-200.0,0.0001185,2]
[350598623,1737987047355,-134283.2701998,0.00011851,2]
[350598624,1737987047371,-2086.67218868,0.00011851,2]
[350598625,1737987047381,-401.81077771,0.00011852,2]
[350598626,1737987047391,-469.309692,0.00011853,2]
[350598627,1737987047400,-3216.28662144,0.00011854,2]
[350598628,1737987047409,-3833.436426,0.00011855,2]
[350598629,1737987047419,-3833.436426,0.00011856,2]
[350598630,1737987047428,-200.0,0.00011856,2]
[350598631,1737987047438,-4067.9485514,0.00011857,2]
[350598632,1737987047447,-2323.46813687,0.00011857,2]
[350598633,1737987047457,-150.189925,0.00011858,2]
[350598634,1737987047466,-39603.78753488,0.00011858,2]
[350598635,1737987047476,-2323.46813687,0.00011859,2]
[350598636,1737987047486,-200.0,0.00011859,2]
[350598637,1737987047495,-7621.35093588,0.0001186,2]
[350598638,1737987047505,-784.76892564,0.0001186,2]
[350598639,1737987047515,-3216.28662144,0.00011861,2]
[350598640,1737987047525,-445.58359524,0.00011861,2]
[350598641,1737987047535,-3216.28662144,0.00011861,2]
[350598642,1737987047544,-1393400.09818235,0.00011862,2]
[350598643,1737987047554,-39603.78753488,0.00011863,2]
[350598644,1737987047564,-3403.24534702,0.00011863,2]
[350598645,1737987047574,-6491.0,0.00011863,2]
[350598646,1737987047583,-803.0,0.00011863,2]
[350598647,1737987047593,-44662.81869526,0.00011864,2]
[350598648,1737987047603,-1440.21631293,0.00011864,2]
[350598649,1737987047618,-357.43792939,0.00011865,2]
[350598650,1737987047628,-1440.21631293,0.00011865,2]
[350598651,1737987047638,-401.81077771,0.00011865,2]
[350598652,1737987047647,-6985.87188734,0.00011865,2]
[350598653,1737987047657,-200.0,0.00011866,2]
[350598654,1737987047667,-297.5949737,0.00011866,2]
[350598655,1737987047677,-44662.81869526,0.00011867,2]
[350598656,1737987047686,-220.66175382,0.00011867,2]
[350598657,1737987047698,-38792.64286343,0.00011868,2]
[350598658,1737987047707,-784.76892564,0.00011868,2]
[350598659,1737987047716,-360.90035835,0.00011869,2]
[350598660,1737987047725,-158.13677173,0.0001187,2]
[350598661,1737987047737,-778.18424091,0.0001187,2]
[350598662,1737987047746,-200.0,0.00011871,2]
[350598663,1737987047754,-1440.21631293,0.00011871,2]
[350598664,1737987047764,-469.309692,0.00011871,2]
[350598665,1737987047773,-816.38278356,0.00011872,2]
[350598666,1737987047783,-39603.78753488,0.00011873,2]
[350598667,1737987047792,-401.81077771,0.00011873,2]
[350598668,1737987047802,-257.19918669,0.00011874,2]
[350598669,1737987047811,-231.4100774,0.00011874,2]
[350598670,1737987047820,-150.189925,0.00011876,2]
[350598671,1737987047830,-6985.87188734,0.00011878,2]
[350598672,1737987047840,-150.189925,0.00011878,2]
[350598673,1737987047849,-500.0,0.00011879,2]
[350598674,1737987047859,-500.0,0.00011879,2]
[350598675,1737987047873,-297.5949737,0.00011879,2]
[350598676,1737987047883,-9875.52651876,0.0001188,2]
[350598677,1737987047892,-25245.03110145,0.00011881,2]
[350598678,1737987048269,-150.0,0.00010929,2]
[350598679,1737987048278,-500.0,0.00010958,2]
[350598680,1737987048288,-500.0,0.00010999,2]
[350598681,1737987048298,-150.0,0.00011022,2]
[350598682,1737987048307,-150.0,0.00011088,2]
[350598683,1737987048317,-904.0,0.00011881,2]
[350598684,1737987048329,-9150.00003,0.00011881,2]
[350598685,1737987048340,-1853.23,0.00011881,2]
[350598686,1737987048450,-325.59,0.00011396,2]
[350598688,1737987098819,624.12,8.813e-05,2]
[350598693,1737987927183,792.59662178,0.00023,120]
[350598694,1737987955593,1949.48379632,0.00017,120]
[350598711,1737988073572,331.0706531,8.219e-05,2]
[350598712,1737988073595,412.7593469,8.219e-05,2]
[350598714,1737988116956,30000.0,0.00023,120]
[350598738,1737988232295,-250.0,9.784e-05,2]
[350598739,1737988232304,-314.68208725,9.828e-05,2]
[350598740,1737988232319,-645.66038748,9.828e-05,2]
[350598741,1737988232339,-628.78,9.828e-05,2]
[350598742,1737988232540,-400.0,9.828e-05,2]
[350598743,1737988232636,-1116.28322968,9.828e-05,2]
[350598871,1737988238166,-5934.05629577,9.828e-05,2]
[350598873,1737988238176,-300.0,9.867e-05,2]
[350598875,1737988238186,-2730.18,9.868e-05,2]
[350598877,1737988238196,-4475.45072059,9.9e-05,2]
[350598878,1737988238205,-517.16,9.912e-05,2]
[350598880,1737988238215,-150.0,9.999e-05,2]
[350598882,1737988238225,-4323.40451152,0.0001,2]
[350598883,1737988238236,-422.56256104,0.0001,2]
[350598887,1737988238271,-7200.61060305,0.0001,2]
[350598889,1737988238283,-251.1859998,0.0001,2]
[350598896,1737988238468,-42320.70707472,0.0001,2]
[350598897,1737988238491,-302.61231,0.0001,2]
[350598898,1737988238503,-9851.54462777,0.0001,2]
[350598899,1737988238591,-3600.0,0.0001,2]
[350598900,1737988238603,-5337.06,0.0001,2]
[350598901,1737988238614,-18015.41834097,0.0001,2]
[350598937,1737988240324,-316.7422,9.9e-05,2]
[350598939,1737988240334,-683.2677704,0.0001,2]
[350598941,1737988240484,-642.66000001,0.0001,2]
[350598942,1737988240495,-2193.13999996,0.0001,2]
[350598943,1737988240505,-1241.34880946,0.0001,2]
[350598944,1737988240516,-260.72299452,0.0001,2]
[350598945,1737988240761,-634042.37121852,0.0001,2]
[350598946,1737988240771,-659.93,0.0001004,2]
[350598947,1737988240780,-650.7,0.00010063,2]
[350598948,1737988240790,-1000.0,0.00010093,2]
[350598949,1737988240799,-200.74,0.00010137,2]
[350598950,1737988240810,-743.83,0.00010464,2]
[350598951,1737988240820,-224.13,0.00010631,2]
[350598952,1737988240829,-158.4,0.00010686,2]
[350598953,1737988240838,-23787.0,0.00010692,2]
[350598954,1737988240848,-158.4,0.00010694,2]
[350598955,1737988240857,-3786.9019,0.000107,2]
[350598956,1737988240866,-2500.0,0.000107,2]
[350598957,1737988240876,-158.4,0.00010701,2]
[350598958,1737988240885,-158.4,0.00010709,2]
[350598959,1737988240895,-158.4,0.00010717,2]
[350598960,1737988240905,-158.4,0.00010724,2]
[350598961,1737988240914,-158.4,0.00010732,2]
[350598962,1737988240924,-507.11463466,0.00010738,2]
[350598963,1737988240933,-158.4,0.0001074,2]
[350598964,1737988240943,-152.40766221,0.00010744,2]
[350598965,1737988240952,-824.55721228,0.00010744,2]
[350598966,1737988240961,-11233.90466823,0.00010744,2]
[350598967,1737988240971,-184.18739159,0.00010744,2]
[350598968,1737988240980,-5381.1072,0.00010758,2]
[350598969,1737988240990,-15904.8642,0.00010758,2]
[350598970,1737988240999,-500.0,0.00010781,2]
[350598971,1737988241009,-158.13677173,0.0001079,2]
[350598972,1737988241018,-3600208.91774512,0.000108,2]
[350598973,1737988241027,-1000.0,0.00010844,2]
[350598974,1737988241037,-1000.0,0.00010844,2]
[350598975,1737988241046,-1000.0,0.00010844,2]
[350598976,1737988241055,-1000.0,0.00010844,2]
[350598977,1737988241066,-1000.0,0.00010844,2]
[350598978,1737988241077,-1000.0,0.00010844,2]
[350598979,1737988241086,-1000.0,0.00010844,2]
[350598980,1737988241095,-1000.0,0.00010844,2]
[350598981,1737988241105,-1000.0,0.00010844,2]
[350598982,1737988241114,-1000.0,0.00010844,2]
[350598983,1737988241124,-1000.0,0.00010844,2]
[350598984,1737988241134,-1000.0,0.00010844,2]
[350598985,1737988241144,-1000.0,0.00010844,2]
[350598986,1737988241154,-1000.0,0.00010844,2]
[350598987,1737988241164,-1000.0,0.00010844,2]
[350598988,1737988241173,-1000.0,0.00010844,2]
[350598989,1737988241183,-1000.0,0.00010844,2]
[350598990,1737988241192,-1000.0,0.00010844,2]
[350598991,1737988241202,-1000.0,0.00010844,2]
[350598992,1737988241211,-1000.0,0.00010844,2]
[350598993,1737988241221,-1000.0,0.00010844,2]
[350598994,1737988241230,-1000.0,0.00010844,2]
[350598995,1737988241239,-1000.0,0.00010844,2]
[350598996,1737988241248,-1000.0,0.00010844,2]
[350598997,1737988241258,-1000.0,0.00010844,2]
[350598998,1737988241268,-1000.0,0.00010844,2]
[350598999,1737988241277,-1000.0,0.00010844,2]
[350599000,1737988241287,-1000.0,0.00010844,2]
[350599001,1737988241296,-1000.0,0.00010844,2]
[350599002,1737988241306,-1000.0,0.00010844,2]
[350599003,1737988241319,-1000.0,0.00010844,2]
[350599004,1737988241328,-1000.0,0.00010844,2]
[350599005,1737988241338,-1000.0,0.00010844,2]
[350599006,1737988241347,-1000.0,0.00010844,2]
[350599007,1737988241356,-30000.0,0.00010849,2]
[350599008,1737988241365,-420.0,0.00010854,2]
[350599009,1737988241375,-5939.84417996,0.00010857,2]
[350599010,1737988241384,-3659.9587,0.00010858,2]
[350599011,1737988241393,-4159.3338,0.00010858,2]
[350599012,1737988241403,-1000.0,0.00010858,2]
[350599013,1737988241412,-2510.6886,0.00010858,2]
[350599014,1737988241421,-36195.5863,0.00010858,2]
[350599015,1737988241431,-4828.1826,0.00010858,2]
[350599016,1737988241440,-5557.5891,0.00010858,2]
[350599017,1737988241449,-531.0694,0.00010858,2]
[350599018,1737988241459,-524.9911,0.00010858,2]
[350599019,1737988241468,-7137.2399,0.00010858,2]
[350599020,1737988241477,-53894.6502,0.00010858,2]
[350599021,1737988241487,-1655.4434,0.00010858,2]
[350599022,1737988241496,-51793.6718,0.00010858,2]
[350599023,1737988241506,-168.6726749,0.00010858,2]
[350599024,1737988241515,-500.0,0.00010881,2]
[350599025,1737988241525,-500.0,0.00010881,2]
[350599026,1737988241535,-500.0,0.00010881,2]
[350599027,1737988241544,-500.0,0.00010881,2]
[350599028,1737988241554,-500.0,0.00010881,2]
[350599029,1737988241566,-500.0,0.00010881,2]
[350599030,1737988241575,-500.0,0.00010881,2]
[350599031,1737988241585,-500.0,0.00010881,2]
[350599032,1737988241595,-500.0,0.00010881,2]
[350599033,1737988241605,-500.0,0.00010881,2]
[350599034,1737988241615,-500.0,0.00010881,2]
[350599035,1737988241625,-500.0,0.00010881,2]
[350599036,1737988241635,-500.0,0.00010881,2]
[350599037,1737988241644,-649.23,0.00010881,2]
[350599038,1737988241654,-194.25990914,0.000109,2]
[350599039,1737988241664,-194.25990914,0.000109,2]
[350599040,1737988241673,-824.55721224,0.00010937,2]
[350599041,1737988241683,-500.0,0.00010958,2]
[350599042,1737988241693,-508.85758665,0.00010958,2]
[350599043,1737988241703,-500.0,0.00010958,2]
[350599044,1737988241713,-209.85462687,0.00010958,2]
[350599045,1737988241723,-500.0,0.00010958,2]
[350599046,1737988241732,-500.0,0.00010958,2]
[350599047,1737988241742,-500.23321183,0.00010958,2]
[350599048,1737988241751,-500.88474496,0.00010958,2]
[350599049,1737988241760,-500.0,0.00010958,2]
[350599050,1737988241770,-502.95059892,0.00010958,2]
[350599051,1737988241780,-500.75363676,0.00010958,2]
[350599052,1737988241790,-504.92408612,0.00010958,2]
[350599053,1737988241800,-505.01379073,0.00010958,2]
[350599054,1737988241811,-501.3855487,0.00010958,2]
[350599055,1737988241821,-500.85430862,0.00010958,2]
[350599056,1737988241831,-504.65391323,0.00010958,2]
[350599057,1737988241841,-502.42174967,0.00010958,2]
[350599058,1737988241851,-501.26877152,0.00010958,2]
[350599059,1737988241861,-500.0,0.00010958,2]
[350599060,1737988241870,-500.0,0.00010958,2]
[350599061,1737988241880,-502.04070835,0.00010958,2]
[350599062,1737988241890,-500.0,0.00010958,2]
[350599063,1737988241899,-501.03925351,0.00010958,2]
[350599064,1737988241909,-500.0,0.00010958,2]
[350599065,1737988241918,-500.0,0.00010958,2]
[350599066,1737988241928,-395.55024397,0.00010958,2]
[350599067,1737988241938,-500.0,0.00010958,2]
[350599068,1737988241948,-500.0,0.00010958,2]
[350599069,1737988241957,-500.0,0.00010958,2]
[350599070,1737988241967,-500.0,0.00010958,2]
[350599071,1737988241976,-202.93245154,0.00010958,2]
[350599072,1737988241986,-500.0,0.00010958,2]
[350599073,1737988241996,-500.0,0.00010958,2]
[350599074,1737988242007,-416.72478951,0.00010958,2]
[350599075,1737988242016,-300.0,0.00010958,2]
[350599076,1737988242026,-500.0,0.00010958,2]
[350599077,1737988242035,-500.0,0.00010958,2]
[350599078,1737988242044,-500.0,0.00010958,2]
[350599079,1737988242053,-500.0,0.00010958,2]
[350599080,1737988242068,-500.0,0.00010958,2]
[350599081,1737988242077,-500.0,0.00010958,2]
[350599082,1737988242086,-500.0,0.00010958,2]
[350599083,1737988242096,-500.0,0.00010958,2]
[350599084,1737988242107,-500.0,0.00010958,2]
[350599085,1737988242116,-500.0,0.00010958,2]
[350599086,1737988242125,-500.0,0.00010958,2]
[350599087,1737988242134,-500.0,0.00010958,2]
[350599088,1737988242146,-526.60618696,0.00010958,2]
[350599089,1737988242155,-500.0,0.00010958,2]
[350599090,1737988242165,-556.93182927,0.00010958,2]
[350599091,1737988242174,-500.0,0.00010958,2]
[350599092,1737988242183,-500.0,0.00010958,2]
[350599093,1737988242192,-500.0,0.00010958,2]
[350599094,1737988242201,-331.49245896,0.00010958,2]
[350599095,1737988242210,-500.0,0.00010958,2]
[350599096,1737988242219,-500.0,0.00010958,2]
[350599097,1737988242228,-500.0,0.00010958,2]
[350599098,1737988242237,-500.0,0.00010958,2]
[350599099,1737988242247,-500.0,0.00010958,2]
[350599100,1737988242256,-500.0,0.00010958,2]
[350599101,1737988242265,-500.0,0.00010958,2]
[350599102,1737988242274,-500.0,0.00010958,2]
[350599103,1737988242283,-500.0,0.00010958,2]
[350599104,1737988242292,-502.4548004,0.00010958,2]
[350599105,1737988242302,-500.0,0.00010958,2]
[350599106,1737988242312,-500.0,0.00010958,2]
[350599107,1737988242321,-500.0,0.00010958,2]
[350599108,1737988242331,-500.0,0.00010958,2]
[350599109,1737988242340,-500.0,0.00010958,2]
[350599110,1737988242349,-500.0,0.00010958,2]
[350599111,1737988242359,-478.881185,0.00010958,2]
[350599112,1737988242370,-500.0,0.00010958,2]
[350599113,1737988242380,-500.0,0.00010958,2]
[350599114,1737988242390,-630.50947628,0.00010958,2]
[350599115,1737988242399,-500.0,0.00010958,2]
[350599116,1737988242409,-500.0,0.00010958,2]
[350599117,1737988242419,-500.0,0.00010958,2]
[350599118,1737988242429,-500.0,0.00010958,2]
[350599119,1737988242439,-500.0,0.00010958,2]
[350599120,1737988242449,-500.0,0.00010958,2]
[350599121,1737988242459,-500.0,0.00010958,2]
[350599122,1737988242468,-500.0,0.00010958,2]
[350599123,1737988242639,-500.0,0.00010958,2]
[350599124,1737988242650,-241.38662236,0.00010958,2]
[350599125,1737988242661,-500.0,0.00010958,2]
[350599126,1737988242671,-571.42082205,0.00010958,2]
[350599127,1737988242682,-500.0,0.00010958,2]
[350599128,1737988242692,-419.4665306,0.00010958,2]
[350599129,1737988242702,-500.0,0.00010958,2]
[350599130,1737988242713,-500.0,0.00010958,2]
[350599131,1737988242724,-500.0,0.00010958,2]
[350599132,1737988242735,-500.0,0.00010958,2]
[350599133,1737988242746,-500.0,0.00010958,2]
[350599134,1737988242757,-500.0,0.00010958,2]
[350599135,1737988242767,-500.0,0.00010958,2]
[350599136,1737988242777,-500.0,0.00010958,2]
[350599137,1737988242789,-500.0,0.00010958,2]
[350599138,1737988242799,-500.0,0.00010958,2]
[350599139,1737988242809,-500.0,0.00010958,2]
[350599140,1737988242826,-500.0,0.00010958,2]
[350599141,1737988242836,-500.0,0.00010958,2]
[350599142,1737988242847,-500.0,0.00010958,2]
[350599143,1737988242857,-548.48360943,0.00010958,2]
[350599144,1737988242867,-502.51844575,0.00010958,2]
[350599145,1737988242877,-500.0,0.00010958,2]
[350599146,1737988242887,-393.81297313,0.00010958,2]
[350599147,1737988242896,-500.0,0.00010958,2]
[350599148,1737988242906,-500.0,0.00010958,2]
[350599149,1737988242916,-500.0,0.00010958,2]
[350599150,1737988242926,-500.0,0.00010958,2]
[350599151,1737988242936,-5000.0,0.00010958,2]
[350599152,1737988242946,-500.97159244,0.00010958,2]
[350599153,1737988242956,-500.0,0.00010958,2]
[350599154,1737988242965,-500.0,0.00010958,2]
[350599155,1737988242975,-500.0,0.00010958,2]
[350599156,1737988242984,-500.0,0.00010958,2]
[350599157,1737988242994,-500.0,0.00010958,2]
[350599159,1737988243003,-500.92181514,0.00010958,2]
[350599160,1737988243012,-542.43072517,0.00010958,2]
[350599161,1737988243022,-500.0,0.00010958,2]
[350599162,1737988243031,-500.0,0.00010958,2]
[350599163,1737988243040,-500.0,0.00010958,2]
[350599164,1737988243050,-500.0,0.00010958,2]
[350599165,1737988243060,-500.0,0.00010958,2]
[350599166,1737988243070,-500.0,0.00010958,2]
[350599167,1737988243082,-500.0,0.00010958,2]
[350599168,1737988243092,-500.0,0.00010958,2]
[350599169,1737988243102,-500.0,0.00010958,2]
[350599170,1737988243112,-500.0,0.00010958,2]
[350599171,1737988243121,-500.0,0.00010958,2]
[350599172,1737988243130,-500.0,0.00010958,2]
[350599173,1737988243139,-500.0,0.00010958,2]
[350599174,1737988243149,-500.0,0.00010958,2]
[350599175,1737988243158,-500.0,0.00010958,2]
[350599176,1737988243168,-500.0,0.00010958,2]
[350599177,1737988243176,-500.0,0.00010958,2]
[350599178,1737988243186,-524.39030124,0.00010958,2]
[350599179,1737988243195,-500.0,0.00010958,2]
[350599180,1737988243205,-509.23118108,0.00010958,2]
[350599181,1737988243214,-501.59785324,0.00010958,2]
[350599182,1737988243223,-500.0,0.00010958,2]
[350599185,1737988243233,-500.0,0.00010958,2]
[350599188,1737988243242,-500.0,0.00010958,2]
[350599189,1737988243251,-500.0,0.00010958,2]
[350599190,1737988243261,-500.0,0.00010958,2]
[350599191,1737988243270,-500.0,0.00010958,2]
[350599193,1737988243279,-502.6725209,0.00010958,2]
[350599195,1737988243289,-504.84055074,0.00010958,2]
[350599196,1737988243298,-501.79520934,0.00010958,2]
[350599197,1737988243308,-500.0,0.00010958,2]
[350599198,1737988243319,-500.0,0.00010958,2]
[350599199,1737988243329,-500.0,0.00010958,2]
[350599200,1737988243338,-500.0,0.00010958,2]
[350599201,1737988243348,-500.0,0.00010958,2]
[350599202,1737988243357,-500.0,0.00010958,2]
[350599203,1737988243367,-500.0,0.00010958,2]
[350599204,1737988243376,-500.0,0.00010958,2]
[350599205,1737988243385,-500.0,0.00010958,2]
[350599206,1737988243394,-500.0,0.00010958,2]
[350599207,1737988243404,-500.0,0.00010958,2]
[350599208,1737988243414,-500.0,0.00010958,2]
[350599209,1737988243423,-500.0,0.00010958,2]
[350599210,1737988243432,-500.0,0.00010958,2]
[350599211,1737988243441,-500.0,0.00010958,2]
[350599212,1737988243451,-500.0,0.00010958,2]
[350599213,1737988243460,-500.0,0.00010958,2]
[350599214,1737988243469,-500.0,0.00010958,2]
[350599215,1737988243478,-503.19504524,0.00010958,2]
[350599216,1737988243487,-600.82111786,0.00010958,2]
[350599217,1737988243497,-500.0,0.00010958,2]
[350599218,1737988243506,-500.0,0.00010958,2]
[350599219,1737988243515,-500.0,0.00010958,2]
[350599220,1737988243524,-500.0,0.00010958,2]
[350599221,1737988243533,-500.0,0.00010958,2]
[350599222,1737988243543,-500.0,0.00010958,2]
[350599223,1737988243552,-500.0,0.00010958,2]
[350599224,1737988243562,-500.0,0.00010958,2]
[350599225,1737988243572,-500.0,0.00010958,2]
[350599226,1737988243581,-500.0,0.00010958,2]
[350599227,1737988243590,-500.0,0.00010958,2]
[350599228,1737988243599,-500.0,0.00010958,2]
[350599229,1737988243608,-490.0,0.00010958,2]
[350599230,1737988243617,-500.0,0.00010958,2]
[350599231,1737988243627,-500.0,0.00010958,2]
[350599232,1737988243636,-500.0,0.00010958,2]
[350599234,1737988243645,-500.0,0.00010958,2]
[350599236,1737988243654,-500.0,0.00010958,2]
[350599238,1737988243664,-500.0,0.00010958,2]
[350599240,1737988243673,-500.0,0.00010958,2]
[350599241,1737988243683,-500.0,0.00010958,2]
[350599243,1737988243692,-500.0,0.00010958,2]
[350599246,1737988243702,-500.0,0.00010958,2]
[350599248,1737988243711,-500.0,0.00010958,2]
[350599249,1737988243720,-500.0,0.00010958,2]
[350599251,1737988243729,-500.0,0.00010958,2]
[350599253,1737988243738,-500.0,0.00010958,2]
[350599255,1737988243747,-154.15858887,0.00010958,2]
[350599257,1737988243756,-505.78891975,0.00010958,2]
[350599259,1737988243765,-500.86683967,0.00010958,2]
[350599261,1737988243774,-261.55182269,0.00010958,2]
[350599263,1737988243783,-500.0,0.00010958,2]
[350599265,1737988243792,-508.56917387,0.00010958,2]
[350599267,1737988243801,-500.0,0.00010958,2]
[350599270,1737988243810,-500.0,0.00010958,2]
[350599272,1737988243823,-503.50955423,0.00010958,2]
[350599274,1737988243832,-500.0,0.00010958,2]
[350599276,1737988243842,-500.0,0.00010958,2]
[350599278,1737988243851,-500.0,0.00010958,2]
[350599280,1737988243860,-505.41451685,0.00010958,2]
[350599282,1737988243870,-500.0,0.00010958,2]
[350599284,1737988243880,-501.58813327,0.00010958,2]
[350599286,1737988243889,-502.45593196,0.00010958,2]
[350599288,1737988243898,-500.0,0.00010958,2]
[350599290,1737988243908,-500.0,0.00010958,2]
[350599292,1737988243917,-500.0,0.00010958,2]
[350599294,1737988243926,-500.0,0.00010958,2]
[350599296,1737988243936,-500.0,0.00010958,2]
[350599298,1737988243948,-502.36773505,0.00010958,2]
[350599300,1737988243958,-500.0,0.00010958,2]
[350599302,1737988243967,-501.50750047,0.00010958,2]
[350599304,1737988243977,-500.0,0.00010958,2]
[350599306,1737988243986,-500.0,0.00010958,2]
[350599308,1737988243996,-502.46625167,0.00010958,2]
[350599310,1737988244006,-500.0,0.00010958,2]
[350599312,1737988244015,-500.0,0.00010958,2]
[350599314,1737988244024,-500.0,0.00010958,2]
[350599316,1737988244033,-501.81791974,0.00010958,2]
[350599318,1737988244043,-500.0,0.00010958,2]
[350599320,1737988244051,-500.0,0.00010958,2]
[350599322,1737988244065,-500.0,0.00010958,2]
[350599324,1737988244074,-500.0,0.00010958,2]
[350599326,1737988244083,-500.0,0.00010958,2]
[350599328,1737988244093,-500.0,0.00010958,2]
[350599330,1737988244103,-500.0,0.00010958,2]
[350599332,1737988244113,-500.0,0.00010958,2]
[350599334,1737988244122,-507.15304919,0.00010958,2]
[350599336,1737988244131,-382.69991141,0.00010958,2]
[350599338,1737988244141,-500.0,0.00010958,2]
[350599340,1737988244150,-500.0,0.00010958,2]
[350599342,1737988244160,-500.0,0.00010958,2]
[350599344,1737988244170,-500.0,0.00010958,2]
[350599346,1737988244179,-500.0,0.00010958,2]
[350599348,1737988244188,-500.0,0.00010958,2]
[350599350,1737988244198,-355.45789463,0.00010958,2]
[350599352,1737988244207,-500.0,0.00010958,2]
[350599354,1737988244217,-500.0,0.00010958,2]
[350599356,1737988244226,-500.0,0.00010958,2]